bitfinex/quotes_BTCUSD_20240803
["timestamp","ask_amount","ask_price","bid_price","bid_amount"]
[1722648801472,6.64097,61290.0,61289.0,0.52467634]
[1722648801654,6.64097,61290.0,61289.0,0.52367634]
[1722648801655,6.62897,61290.0,61289.0,0.52367634]
[1722648801999,6.64097,61290.0,61289.0,0.52467634]
[1722648802398,6.62897,61290.0,61289.0,0.53367634]
[1722648802824,6.62897,61290.0,61289.0,0.61400267]
[1722648803279,6.62997,61290.0,61289.0,0.61500267]
[1722648803439,6.62997,61290.0,61289.0,1.00310267]
[1722648803767,6.64197,61290.0,61289.0,0.60177634]
[1722648803982,6.64097,61290.0,61289.0,0.60077634]
[1722648804186,6.64197,61290.0,61289.0,0.52567634]
[1722648804386,6.62997,61290.0,61289.0,0.52467634]
[1722648804590,6.64197,61290.0,61289.0,0.52567634]
[1722648804742,6.64097,61290.0,61289.0,0.52467634]
[1722648804945,6.62897,61290.0,61289.0,0.52367634]
[1722648805144,6.62897,61290.0,61289.0,0.52467634]
[1722648805396,6.64097,61290.0,61289.0,0.52467634]
[1722648805597,6.64097,61290.0,61289.0,0.52367634]
[1722648805796,6.64097,61290.0,61289.0,0.53567634]
[1722648806021,6.64197,61290.0,61289.0,0.53667634]
[1722648806222,6.64197,61290.0,61289.0,0.52467634]
[1722648806399,6.64097,61290.0,61289.0,0.52367634]
[1722648806946,6.65397,61290.0,61289.0,0.52567634]
[1722648807145,6.62997,61290.0,61289.0,0.53467634]
[1722648807348,6.62897,61290.0,61289.0,0.52367634]
[1722648807551,6.64097,61290.0,61289.0,0.53467634]
[1722648807759,6.64197,61290.0,61289.0,0.53567634]
[1722648807932,6.62997,61290.0,61289.0,0.53467634]
[1722648808129,6.64197,61290.0,61289.0,0.53591162]
[1722648808384,6.64197,61290.0,61289.0,0.40445924]
[1722648808590,6.64197,61290.0,61289.0,0.52591128]
[1722648808731,6.64197,61290.0,61289.0,0.53591251]
[1722648808931,6.64197,61290.0,61289.0,0.55691251]
[1722648808932,6.64097,61290.0,61289.0,0.55691251]
[1722648809132,6.64097,61290.0,61289.0,0.69871251]
[1722648809133,6.62897,61290.0,61289.0,0.69871251]
[1722648809335,6.62997,61290.0,61289.0,0.77846445]
[1722648809559,6.62997,61290.0,61289.0,0.82727337]
[1722648809734,6.62997,61290.0,61289.0,0.80527337]
[1722648809954,6.62997,61290.0,61289.0,0.77646445]
[1722648810331,6.62897,61290.0,61289.0,0.77546445]
[1722648810505,6.64097,61290.0,61289.0,0.82527337]
[1722648810712,6.64197,61290.0,61289.0,0.82627337]
[1722648811022,6.62997,61290.0,61289.0,0.82628404]
[1722648811211,6.64197,61290.0,61289.0,0.82627337]
[1722648811419,6.64197,61290.0,61289.0,0.77946445]
[1722648811630,6.64197,61290.0,61289.0,0.82627138]
[1722648811841,6.65397,61290.0,61289.0,0.82727138]
[1722648812009,6.65397,61290.0,61289.0,0.91338594]
[1722648812211,6.65297,61290.0,61289.0,0.77746069]
[1722648812417,6.65297,61290.0,61289.0,0.87746069]
[1722648812576,6.65397,61290.0,61289.0,0.87846069]
[1722648812777,6.65397,61290.0,61289.0,0.68373077]
[1722648812992,6.65297,61290.0,61289.0,0.63390875]
[1722648813443,6.65397,61290.0,61289.0,0.63490875]
[1722648813643,6.62997,61290.0,61289.0,0.63390875]
[1722648813846,6.62897,61290.0,61289.0,0.63290875]
[1722648814053,6.62897,61290.0,61289.0,0.52290875]
[1722648814226,6.64097,61290.0,61289.0,0.52390875]
[1722648814454,6.64097,61290.0,61289.0,0.26644951]
[1722648814603,6.66397,61290.0,61289.0,0.145]
[1722648814810,6.65197,61290.0,61289.0,0.145]
[1722648815066,6.66397,61290.0,61289.0,0.146]
[1722648815237,6.66397,61290.0,61289.0,0.147]
[1722648815238,6.66497,61290.0,61289.0,0.147]
[1722648815454,6.64197,61290.0,61289.0,0.30345924]
[1722648815833,6.64097,61290.0,61289.0,0.42311599]
[1722648815997,6.64097,61290.0,61289.0,0.59591599]
[1722648816151,6.64197,61290.0,61289.0,0.69691599]
[1722648816490,6.64197,61290.0,61289.0,0.67691599]
[1722648816696,6.64197,61290.0,61289.0,0.52311599]
[1722648816697,6.65497,61290.0,61289.0,0.52311599]
[1722648816948,6.65597,61290.0,61289.0,0.52411599]
[1722648817115,6.69557,61290.0,61289.0,0.42411599]
[1722648817286,6.77447,61290.0,61289.0,0.146]
[1722648817485,6.78847,61290.0,61289.0,0.146]
[1722648817688,6.79747,61290.0,61289.0,0.146]
[1722648818240,6.81147,61290.0,61289.0,0.146]
[1722648818459,6.81147,61290.0,61289.0,0.13]
[1722648818460,6.79647,61290.0,61289.0,0.13]
[1722648818660,6.79647,61290.0,61287.0,0.000913]
[1722648818661,0.122373,61288.0,61287.0,0.000913]
[1722648818785,0.266873,61288.0,61287.0,0.01719528]
[1722648818985,0.30630165,61288.0,61287.0,0.01719528]
[1722648819196,0.20692865,61288.0,61287.0,0.01719528]
[1722648819401,0.32930165,61288.0,61287.0,0.01719528]
[1722648820301,0.48676089,61288.0,61287.0,0.03119528]
[1722648820598,0.97625289,61288.0,61287.0,0.03119528]
[1722648821013,0.97725289,61288.0,61287.0,0.03419528]
[1722648821215,0.73250689,61288.0,61287.0,0.03419528]
[1722648821421,0.97725289,61288.0,61287.0,0.03419528]
[1722648821623,0.9820172,61288.0,61287.0,0.03419528]
[1722648821773,0.7322712,61288.0,61287.0,0.03419528]
[1722648822762,0.49635663,61288.0,61287.0,0.03419528]
[1722648822964,0.33889739,61288.0,61287.0,0.03419528]
[1722648823301,0.21652439,61288.0,61287.0,0.03419528]
[1722648823885,0.33889739,61288.0,61287.0,0.017913]
[1722648824225,0.74110263,61288.0,61287.0,0.017913]
[1722648824358,0.74610263,61288.0,61287.0,0.017913]
[1722648824560,0.74110263,61288.0,61287.0,0.017913]
[1722648824891,0.70190967,61288.0,61287.0,0.017913]
[1722648825096,0.74093563,61288.0,61287.0,0.017913]
[1722648825498,0.37381663,61288.0,61287.0,0.017913]
[1722648825707,0.17733143,61288.0,61287.0,0.022913]
[1722648825884,0.17733143,61288.0,61287.0,0.017913]
[1722648825885,0.15433143,61288.0,61287.0,0.017913]
[1722648826290,0.15433143,61288.0,61287.0,0.032913]
[1722648826726,0.15433143,61288.0,61287.0,0.017913]
[1722648827104,0.33883136,61288.0,61287.0,0.017913]
[1722648828331,0.21645836,61288.0,61287.0,0.017913]
[1722648828529,0.21637408,61288.0,61287.0,0.017913]
[1722648828730,0.17733143,61288.0,61287.0,0.017913]
[1722648829678,0.17733143,61288.0,61287.0,0.032913]
[1722648829876,0.17733143,61288.0,61287.0,0.017913]
[1722648830442,0.29970443,61288.0,61287.0,0.017913]
[1722648830759,0.54445043,61288.0,61287.0,0.017913]
[1722648830985,0.58850831,61288.0,61287.0,0.017913]
[1722648831166,0.58350831,61288.0,61287.0,0.017913]
[1722648831371,0.99071355,61288.0,61287.0,0.017913]
[1722648831539,0.74596755,61288.0,61287.0,0.017913]
[1722648831744,0.74096755,61288.0,61287.0,0.017913]
[1722648831952,0.99071355,61288.0,61287.0,0.017913]
[1722648832314,0.74096755,61288.0,61287.0,0.017913]
[1722648833213,0.74096755,61288.0,61272.0,0.01705192]
[1722648833214,0.122395,61277.0,61272.0,0.01705192]
[1722648833430,0.244759,61285.0,61272.0,0.0333342]
[1722648833431,0.0628,61275.0,61272.0,0.0333342]
[1722648833788,0.1015,61274.0,61272.0,0.0333342]
[1722648833994,0.1015,61274.0,61273.0,0.015]
[1722648835416,0.023,61274.0,61273.0,0.015]
[1722648835586,0.023,61276.0,61275.0,0.015]
[1722648835832,0.07875194,61281.0,61274.0,0.015]
[1722648835833,0.023,61280.0,61274.0,0.015]
[1722648836044,0.023,61280.0,61272.0,0.0783342]
[1722648836248,0.023,61280.0,61274.0,0.015]
[1722648836373,0.023,61280.0,61276.0,0.015]
[1722648836576,0.023,61280.0,61275.0,0.015]
[1722648836775,0.023,61280.0,61274.0,0.015]
[1722648836977,0.023,61280.0,61272.0,0.0633342]
[1722648836978,0.0785,61277.0,61272.0,0.0633342]
[1722648837222,0.023,61276.0,61274.0,0.005]
[1722648837450,0.023,61276.0,61274.0,0.015]
[1722648837568,0.023,61276.0,61275.0,0.015]
[1722648838066,0.023,61276.0,61274.0,0.015]
[1722648838417,0.024,61276.0,61274.0,0.015]
[1722648838627,0.002,61276.0,61275.0,0.015]
[1722648839031,0.001,61276.0,61275.0,0.015]
[1722648839235,0.002,61276.0,61275.0,0.015]
[1722648839646,0.001,61276.0,61275.0,0.015]
[1722648839853,0.002,61276.0,61275.0,0.015]
[1722648840642,0.001,61276.0,61274.0,0.015]
[1722648840776,0.001,61276.0,61275.0,0.015]
[1722648840777,0.002,61276.0,61275.0,0.015]
[1722648841157,0.001,61276.0,61275.0,0.015]
[1722648841371,0.023,61282.0,61281.0,0.015]
[1722648841562,0.023,61282.0,61281.0,0.03128228]
[1722648842011,0.1413,61287.0,61284.0,0.015]
[1722648842215,0.1413,61287.0,61281.0,0.01628228]
[1722648842216,0.1413,61287.0,61283.0,0.015]
[1722648842391,0.03916493,61286.0,61283.0,0.015]
[1722648842589,0.03916493,61286.0,61281.0,0.01628228]
[1722648843024,0.005,61284.0,61281.0,0.01628228]
[1722648843220,0.186185,61282.0,61281.0,0.03028228]
[1722648843429,0.12596493,61282.0,61281.0,0.03028228]
[1722648843961,0.12585917,61282.0,61281.0,0.03028228]
[1722648844252,0.0791175,61282.0,61281.0,0.04528228]
[1722648844451,0.03905917,61282.0,61281.0,0.03128228]
[1722648844864,0.03905917,61282.0,61281.0,0.03928228]
[1722648845059,0.04005917,61282.0,61281.0,0.04028228]
[1722648846864,0.04105917,61282.0,61281.0,0.04928228]
[1722648848297,0.04105917,61282.0,61281.0,0.03428228]
[1722648848514,0.04105917,61282.0,61281.0,0.033]
[1722648848515,0.10346711,61282.0,61281.0,0.033]
[1722648848725,0.10146711,61282.0,61281.0,0.015]
[1722648848923,0.01786484,61282.0,61281.0,0.015]
[1722648849132,0.001,61282.0,61281.0,0.024]
[1722648849344,0.001,61282.0,61281.0,0.015]
[1722648849720,0.002,61282.0,61281.0,0.024]
[1722648850683,0.002,61282.0,61281.0,0.038]
[1722648850684,0.03674965,61282.0,61281.0,0.038]
[1722648851080,0.03674965,61282.0,61281.0,0.029]
[1722648851081,0.05774965,61282.0,61281.0,0.029]
[1722648851252,0.05774965,61282.0,61281.0,0.043]
[1722648853247,0.05774965,61282.0,61281.0,0.028]
[1722648853452,0.145385,61282.0,61281.0,0.028]
[1722648853668,0.32633443,61282.0,61281.0,0.028]
[1722648853861,0.48379367,61282.0,61281.0,0.028]
[1722648854095,0.72856367,61282.0,61281.0,0.028]
[1722648854750,0.72856367,61282.0,61281.0,0.014]
[1722648854970,0.122388,61281.0,61273.0,0.015]
[1722648855170,0.122392,61279.0,61273.0,0.03128228]
[1722648855441,0.513403,61274.0,61273.0,0.01628228]
[1722648855609,0.700509,61273.0,61272.0,0.01625141]
[1722648855749,0.268621,61264.0,61260.0,0.000913]
[1722648855952,0.05774943,61263.0,61260.0,0.000913]
[1722648856153,0.13920428,61262.0,61260.0,0.000913]
[1722648856494,0.10445485,61261.0,61260.0,0.015913]
[1722648856672,0.10410305,61261.0,61260.0,0.000913]
[1722648857030,0.10410305,61261.0,61260.0,0.015913]
[1722648857239,0.12710305,61261.0,61260.0,0.015913]
[1722648857739,0.10410305,61261.0,61260.0,0.015913]
[1722648857911,0.10510305,61261.0,61260.0,0.029913]
[1722648858119,0.10510305,61261.0,61260.0,0.043913]
[1722648858120,0.12910305,61261.0,61260.0,0.043913]
[1722648858372,0.12810305,61261.0,61260.0,0.029913]
[1722648858589,0.12810305,61261.0,61260.0,0.014913]
[1722648858759,0.12910305,61261.0,61260.0,0.043913]
[1722648859119,0.12910305,61261.0,61260.0,0.029913]
[1722648859318,0.13010305,61261.0,61260.0,0.043913]
[1722648859721,0.12910305,61261.0,61260.0,0.029913]
[1722648859922,0.12993305,61261.0,61260.0,0.029913]
[1722648860135,0.13093305,61261.0,61260.0,0.043913]
[1722648860576,0.12893305,61261.0,61260.0,0.029913]
[1722648861484,0.12993305,61261.0,61260.0,0.043913]
[1722648861884,0.12893305,61261.0,61260.0,0.029913]
[1722648862104,0.12893305,61261.0,61260.0,0.043913]
[1722648862105,0.12993305,61261.0,61260.0,0.043913]
[1722648862757,0.10693305,61261.0,61260.0,0.043913]
[1722648862950,0.10593305,61261.0,61260.0,0.42597224]
[1722648863073,0.60693305,61261.0,61260.0,0.43997224]
[1722648863888,0.60593305,61261.0,61260.0,0.28737224]
[1722648864088,0.60593305,61261.0,61260.0,0.043913]
[1722648864334,0.75313305,61261.0,61260.0,0.043913]
[1722648864585,0.75313305,61261.0,61260.0,0.029913]
[1722648864790,0.60693305,61261.0,61260.0,0.029913]
[1722648865009,0.60777658,61261.0,61260.0,0.043913]
[1722648867138,0.63077658,61261.0,61260.0,0.043913]
[1722648867578,0.60777658,61261.0,61260.0,0.043913]
[1722648867726,0.60777658,61261.0,61260.0,0.104413]
[1722648869210,0.60777658,61261.0,61260.0,0.043913]
[1722648869618,0.63077658,61261.0,61260.0,0.043913]
[1722648870022,0.60777658,61261.0,61260.0,0.043913]
[1722648870444,0.63077658,61261.0,61260.0,0.043913]
[1722648871020,0.69627658,61261.0,61260.0,0.043913]
[1722648871225,0.77367658,61261.0,61260.0,0.043913]
[1722648872646,0.77367658,61261.0,61260.0,0.028913]
[1722648872852,0.80838644,61261.0,61260.0,0.028913]
[1722648873774,0.80738644,61261.0,61260.0,0.014913]
[1722648873976,0.815283,61261.0,61260.0,0.013913]
[1722648874252,0.816283,61261.0,61260.0,0.024913]
[1722648874450,0.78057314,61261.0,61260.0,0.016913]
[1722648874665,0.77957314,61261.0,61260.0,0.000913]
[1722648874793,0.81535226,61261.0,61260.0,0.013913]
[1722648874999,0.62877658,61261.0,61260.0,0.028913]
[1722648875221,0.62977658,61261.0,61260.0,0.039913]
[1722648875839,0.62859739,61261.0,61260.0,0.028913]
[1722648876041,0.62759739,61261.0,61260.0,0.015913]
[1722648876455,0.62859739,61261.0,61260.0,0.029913]
[1722648877056,0.62859739,61261.0,61260.0,0.014913]
[1722648877529,0.66464367,61261.0,61260.0,0.027913]
[1722648878443,0.66464367,61261.0,61260.0,0.042913]
[1722648878647,0.62959739,61261.0,61260.0,0.042913]
[1722648879059,0.50283,61261.0,61260.0,0.042913]
[1722648879568,0.50283,61261.0,61260.0,0.42262418]
[1722648879737,0.50283,61261.0,61260.0,0.62681574]
[1722648879890,0.50283,61261.0,61260.0,0.5480638]
[1722648879891,0.50183,61261.0,61260.0,0.5480638]
[1722648880092,0.50283,61261.0,61260.0,0.5620638]
[1722648880560,0.50183,61261.0,61260.0,0.5490638]
[1722648880766,0.50083,61261.0,61260.0,0.5350638]
[1722648881042,0.50883,61261.0,61260.0,0.5500638]
[1722648881247,0.50883,61261.0,61260.0,0.5360638]
[1722648881480,0.50883,61261.0,61260.0,0.5370638]
[1722648881829,0.50883,61261.0,61260.0,0.5360638]
[1722648881989,0.50883,61261.0,61260.0,0.5370638]
[1722648882190,0.50083,61261.0,61260.0,0.5360638]
[1722648882392,0.50083,61261.0,61260.0,0.53663819]
[1722648882605,0.50083,61261.0,61260.0,0.53763819]
[1722648882806,0.50083,61261.0,61260.0,0.41787224]
[1722648883037,0.50083,61261.0,61260.0,0.53607864]
[1722648883448,0.50083,61261.0,61260.0,0.53707864]
[1722648884465,0.50083,61261.0,61260.0,0.53807864]
[1722648885268,0.50083,61261.0,61260.0,0.53707864]
[1722648885630,0.50083,61261.0,61260.0,0.2371194]
[1722648885631,0.52383,61261.0,61260.0,0.2371194]
[1722648885740,0.52383,61261.0,61260.0,0.002913]
[1722648885954,0.52383,61261.0,61260.0,0.016913]
[1722648886426,0.52383,61261.0,61260.0,0.017913]
[1722648886824,0.52383,61261.0,61260.0,0.001913]
[1722648887029,0.55870617,61261.0,61260.0,0.000913]
[1722648887283,0.71200617,61261.0,61260.0,0.002913]
[1722648888166,0.69900617,61261.0,61260.0,0.001913]
[1722648888504,0.69900617,61261.0,61260.0,0.020913]
[1722648888505,0.70000617,61261.0,61260.0,0.020913]
[1722648888713,0.70000617,61261.0,61260.0,0.006913]
[1722648889116,0.70000617,61261.0,61260.0,0.015913]
[1722648889117,0.52483,61261.0,61260.0,0.015913]
[1722648889322,0.52483,61261.0,61251.0,0.17875194]
[1722648889323,0.0612,61260.0,61234.0,1.5]
[1722648889535,0.0612,61260.0,61205.0,0.000913]
[1722648889536,0.245074,61206.0,61205.0,0.000913]
[1722648889744,0.71713985,61206.0,61205.0,0.000913]
[1722648889946,2.40727468,61206.0,61205.0,0.000913]
[1722648890149,0.02,61201.0,61198.0,0.010109]
[1722648890357,1.02691391,61206.0,61198.0,0.010109]
[1722648890358,0.10445485,61200.0,61198.0,0.010109]
[1722648890964,0.0374,61205.0,61198.0,0.010109]
[1722648891166,0.001,61206.0,61198.0,0.010109]
[1722648891459,0.00157439,61205.0,61198.0,0.011109]
[1722648891627,0.00157439,61205.0,61198.0,0.010109]
[1722648891833,0.00157439,61209.0,61198.0,0.010109]
[1722648892044,0.00157439,61209.0,61198.0,0.024109]
[1722648892045,0.001,61200.0,61198.0,0.024109]
[1722648892538,0.002,61200.0,61198.0,0.024109]
[1722648892896,0.001,61200.0,61199.0,0.1]
[1722648893095,0.002,61200.0,61199.0,0.3]
[1722648893300,0.001,61200.0,61199.0,0.30326758]
[1722648893504,0.001,61200.0,61199.0,0.3]
[1722648893902,0.001,61205.0,61199.0,0.3]
[1722648894106,0.014,61200.0,61199.0,0.301]
[1722648894459,0.014,61200.0,61199.0,0.3]
[1722648895417,0.027,61200.0,61199.0,0.301]
[1722648895907,0.04,61200.0,61199.0,0.301]
[1722648896284,0.027,61200.0,61199.0,0.301]
[1722648896493,0.027,61200.0,61199.0,0.30426765]
[1722648896691,0.01,61200.0,61199.0,0.30326765]
[1722648897007,0.01,61200.0,61199.0,0.46172683]
[1722648897214,0.01,61200.0,61199.0,0.46072683]
[1722648897408,0.01,61200.0,61199.0,0.45745924]
[1722648897610,0.01,61200.0,61199.0,0.45845924]
[1722648899820,0.01,61200.0,61199.0,0.35845924]
[1722648900075,0.01,61200.0,61199.0,0.001]
[1722648900861,0.01,61200.0,61198.0,0.010109]
[1722648901060,0.07875194,61203.0,61198.0,0.010109]
[1722648901285,0.00890385,61207.0,61199.0,0.014]
[1722648901471,0.00157439,61206.0,61199.0,0.014]
[1722648901672,0.12411139,61206.0,61199.0,0.014]
[1722648901877,0.07875194,61203.0,61199.0,0.014]
[1722648902254,0.08875194,61203.0,61199.0,0.014]
[1722648902456,0.368647,61200.0,61199.0,0.014]
[1722648902659,0.001,61200.0,61199.0,0.014]
[1722648902857,0.183747,61201.0,61198.0,0.010109]
[1722648903096,0.0612,61201.0,61198.0,0.010109]
[1722648903251,0.0612,61201.0,61198.0,0.022109]
[1722648903453,0.0612,61201.0,61198.0,0.010109]
[1722648904037,0.001,61200.0,61198.0,0.010109]
[1722648904444,0.001,61200.0,61199.0,0.15745924]
[1722648904984,0.001,61200.0,61198.0,0.010109]
[1722648905158,0.122551,61199.0,61198.0,0.010109]
[1722648905365,0.03,61205.0,61198.0,0.010109]
[1722648905575,0.122547,61201.0,61198.0,0.010109]
[1722648905781,0.11445485,61205.0,61198.0,0.010109]
[1722648906266,0.10445485,61205.0,61198.0,0.010109]
[1722648906501,0.10445485,61205.0,61199.0,0.15745924]
[1722648907068,0.001,61200.0,61199.0,0.15745924]
[1722648907316,0.10445485,61205.0,61199.0,0.15745924]
[1722648907881,0.00909788,61212.0,61199.0,0.15745924]
[1722648908086,0.00157439,61213.0,61199.0,0.15745924]
[1722648908461,0.001,61200.0,61199.0,0.16845924]
[1722648908660,0.122533,61208.0,61198.0,0.010109]
[1722648908951,0.001,61200.0,61199.0,0.011]
[1722648909115,0.001,61200.0,61199.0,0.16845924]
[1722648909485,0.001,61200.0,61199.0,0.24952712]
[1722648909684,0.00157439,61219.0,61200.0,0.065]
[1722648909885,0.245024,61219.0,61201.0,0.15745924]
[1722648910201,0.001,61205.0,61201.0,0.15745924]
[1722648911118,0.13172684,61220.0,61201.0,0.15745924]
[1722648911318,0.00157439,61219.0,61201.0,0.15745924]
[1722648911516,0.0651,61228.0,61206.0,0.1]
[1722648911716,0.47251164,61224.0,61207.0,0.23621118]
[1722648911918,0.009,61219.0,61207.0,0.23621118]
[1722648912121,0.009,61219.0,61207.0,0.15745924]
[1722648912440,0.0651,61228.0,61207.0,0.15745924]
[1722648912641,0.0661,61228.0,61207.0,0.15745924]
[1722648913045,0.0661,61228.0,61208.0,0.10326727]
[1722648913245,0.0651,61228.0,61209.0,0.15745924]
[1722648914003,0.0808,61230.0,61209.0,0.15745924]
[1722648914004,0.0808,61230.0,61210.0,0.00326712]
[1722648914221,0.0808,61230.0,61211.0,0.15745924]
[1722648914569,0.203289,61230.0,61211.0,0.15745924]
[1722648914778,0.0808,61230.0,61211.0,0.15745924]
[1722648914971,0.00157439,61229.0,61211.0,0.15745924]
[1722648915173,0.07875194,61226.0,61211.0,0.15745924]
[1722648915504,0.0808,61230.0,61211.0,0.15745924]
[1722648915720,0.00157439,61229.0,61211.0,0.15745924]
[1722648915853,0.00157439,61229.0,61213.0,0.178]
[1722648916068,0.077,61237.0,61214.0,0.32142592]
[1722648916261,0.07875194,61239.0,61215.0,0.00326664]
[1722648916481,0.00157439,61238.0,61216.0,0.15745924]
[1722648916684,0.062824,61238.0,61216.0,0.15745924]
[1722648916886,0.07875194,61225.0,61216.0,0.15745924]
[1722648917091,0.00157439,61231.0,61216.0,0.15745924]
[1722648917299,0.12406239,61231.0,61216.0,0.15745924]
[1722648917504,0.00157439,61231.0,61216.0,0.15665746]
[1722648917910,0.43401409,61238.0,61220.0,0.1]
[1722648917911,0.00157439,61237.0,61220.0,0.1]
[1722648918073,0.001,61225.0,61221.0,0.15745924]
[1722648919688,0.002,61225.0,61222.0,0.00326648]
[1722648919959,0.002,61225.0,61223.0,0.15745924]
[1722648920156,0.10445485,61238.0,61223.0,0.15745924]
[1722648920464,0.008,61225.0,61223.0,0.15745924]
[1722648921091,0.01,61225.0,61223.0,0.15745924]
[1722648921645,0.01,61225.0,61223.0,0.15845924]
[1722648921646,0.002,61225.0,61223.0,0.15845924]
[1722648921856,0.008,61225.0,61223.0,0.15845924]
[1722648922282,0.00157439,61237.0,61223.0,0.15745924]
[1722648922488,0.07875194,61232.0,61223.0,0.15745924]
[1722648922682,0.008,61225.0,61223.0,0.15845924]
[1722648923079,0.00157439,61231.0,61223.0,0.15745924]
[1722648923257,0.002,61225.0,61223.0,0.15845924]
[1722648923439,0.002,61225.0,61223.0,0.15945924]
[1722648923642,0.07875194,61232.0,61223.0,0.15845924]
[1722648923891,0.06292425,61231.0,61223.0,0.15945924]
[1722648924105,0.002,61225.0,61223.0,0.15945924]
[1722648924832,0.00083,61231.0,61223.0,0.15945924]
[1722648924833,0.00083,61231.0,61225.0,0.078]
[1722648925150,0.01083,61231.0,61230.0,0.1432]
[1722648925368,0.01083,61231.0,61230.0,0.40392507]
[1722648925571,0.00283,61231.0,61230.0,0.40392507]
[1722648926525,0.00083,61231.0,61230.0,0.40392507]
[1722648926926,0.00083,61231.0,61230.0,0.26072507]
[1722648927129,0.00083,61231.0,61230.0,0.25745924]
[1722648927516,0.00383,61231.0,61230.0,0.15845924]
[1722648927917,0.01183,61231.0,61230.0,0.15945924]
[1722648928320,0.00883,61231.0,61230.0,0.15845924]
[1722648928520,0.00883,61231.0,61230.0,0.15745924]
[1722648928521,0.00083,61231.0,61230.0,0.15745924]
[1722648928933,0.00883,61231.0,61230.0,0.15845924]
[1722648929332,0.00883,61231.0,61230.0,0.15745924]
[1722648929333,0.00083,61231.0,61230.0,0.15745924]
[1722648929791,0.01083,61231.0,61230.0,0.15945924]
[1722648930021,0.01083,61231.0,61230.0,0.15845924]
[1722648930357,0.01283,61231.0,61230.0,0.15945924]
[1722648931811,0.00483,61231.0,61230.0,0.15845924]
[1722648932012,0.01283,61231.0,61230.0,0.16272542]
[1722648932522,0.01283,61231.0,61230.0,0.22732542]
[1722648933366,0.01283,61231.0,61230.0,0.30742542]
[1722648933563,0.01283,61231.0,61230.0,0.41742542]
[1722648933818,0.01283,61231.0,61230.0,0.40742542]
[1722648934031,0.01283,61231.0,61230.0,0.41742542]
[1722648934178,0.01283,61231.0,61230.0,0.41942542]
[1722648934578,0.01283,61231.0,61230.0,0.40742542]
[1722648934780,0.01283,61231.0,61230.0,0.40942542]
[1722648934988,0.01283,61231.0,61230.0,0.41942542]
[1722648935171,0.01283,61231.0,61230.0,0.44835711]
[1722648935770,0.01283,61231.0,61230.0,0.47135711]
[1722648936073,0.01283,61231.0,61230.0,0.46709093]
[1722648936074,0.00483,61231.0,61230.0,0.46709093]
[1722648936293,0.00483,61231.0,61230.0,0.46609093]
[1722648936294,0.00083,61231.0,61230.0,0.46609093]
[1722648936494,0.00883,61231.0,61230.0,0.46709093]
[1722648936874,0.01283,61231.0,61230.0,0.46809093]
[1722648939330,0.01283,61231.0,61230.0,0.44809093]
[1722648939537,0.01283,61231.0,61230.0,0.44609093]
[1722648939738,0.01283,61231.0,61230.0,0.46809093]
[1722648939956,0.01273,61231.0,61230.0,0.46809093]
[1722648941808,0.01273,61231.0,61230.0,0.44509093]
[1722648942009,0.01273,61231.0,61230.0,0.44809093]
[1722648942168,0.01273,61231.0,61230.0,0.46809093]
[1722648942372,0.00473,61231.0,61230.0,0.46709093]
[1722648942574,0.01173,61231.0,61230.0,0.46809093]
[1722648943048,0.00773,61231.0,61230.0,0.46709093]
[1722648943251,0.00073,61231.0,61230.0,0.46709093]
[1722648943424,0.00473,61231.0,61230.0,0.5391057]
[1722648943598,0.00473,61231.0,61230.0,0.5381057]
[1722648943807,0.00473,61231.0,61230.0,0.5391057]
[1722648944001,0.00873,61231.0,61230.0,0.5391057]
[1722648944163,0.00473,61231.0,61230.0,0.5381057]
[1722648944368,0.00873,61231.0,61230.0,0.5391057]
[1722648944681,0.00473,61231.0,61230.0,0.5381057]
[1722648945160,0.01473,61231.0,61230.0,0.5401057]
[1722648945560,0.01473,61231.0,61230.0,0.5391057]
[1722648945561,0.00873,61231.0,61230.0,0.5391057]
[1722648945862,0.01473,61231.0,61230.0,0.5081057]
[1722648946070,0.01473,61231.0,61230.0,0.31309093]
[1722648946268,0.00673,61231.0,61230.0,0.31209093]
[1722648946643,0.00473,61231.0,61230.0,0.31209093]
[1722648946863,0.00473,61231.0,61230.0,0.64309093]
[1722648946864,0.01073,61231.0,61230.0,0.64309093]
[1722648947044,0.01073,61231.0,61230.0,0.64509093]
[1722648947265,0.01073,61231.0,61230.0,0.70929093]
[1722648947266,0.01473,61231.0,61230.0,0.70929093]
[1722648947616,0.00673,61231.0,61230.0,0.80216775]
[1722648947788,0.00673,61231.0,61230.0,0.90216775]
[1722648947941,0.00673,61231.0,61230.0,0.90116775]
[1722648948150,0.00073,61231.0,61230.0,0.90116775]
[1722648948350,0.00773,61231.0,61230.0,0.90337695]
[1722648948561,0.01173,61231.0,61230.0,0.90337695]
[1722648948773,0.00473,61231.0,61230.0,0.90237695]
[1722648949214,0.01173,61231.0,61230.0,1.04637695]
[1722648949564,0.00157439,61254.0,61251.0,0.1]
[1722648949764,0.01623876,61253.0,61252.0,0.15745924]
[1722648950009,0.0632,61255.0,61252.0,0.15745924]
[1722648950325,0.01623876,61253.0,61252.0,0.15745924]
[1722648950466,0.0632,61255.0,61252.0,0.15745924]
[1722648950671,0.01623876,61253.0,61252.0,0.15745924]
[1722648950943,0.0632,61255.0,61252.0,0.15745924]
[1722648951147,0.01623876,61253.0,61252.0,0.15745924]
[1722648951272,0.0632,61255.0,61252.0,0.17145924]
[1722648951522,0.0628,61260.0,61252.0,0.1607242]
[1722648951723,0.50083,61261.0,61253.0,0.00326462]
[1722648951922,0.50083,61261.0,61258.0,0.1]
[1722648952129,0.50068193,61261.0,61259.0,0.15745924]
[1722648952331,0.01626862,61260.0,61259.0,0.15745924]
[1722648953593,0.01626862,61260.0,61259.0,0.15845924]
[1722648954131,0.01626862,61260.0,61259.0,0.15945924]
[1722648954354,0.01626862,61260.0,61259.0,0.15845924]
[1722648954757,0.01626862,61260.0,61259.0,0.15945924]
[1722648955014,0.01626862,61260.0,61259.0,0.15845924]
[1722648955229,0.01626862,61260.0,61259.0,0.15745924]